Cogmind - Beta 15 @@@ ROGUE MODE // 2025.05.25 @ 11:21:26 Player: amhumam Result: Destroyed by 65-VYE(R) with Subdweller Laser Performance ------------- Evolutions (0) 0 Regions Visited (3) 600 Robots Destroyed (38) 190 Value Destroyed (1019) 1019 Prototype IDs (0) 0 Alien Tech Used (0) 0 Bonus (21) 21 TOTAL SCORE: 1830 Bonus ------- Follower Combat Kills 21 Cogmind --------- Core Integrity 0/250 Matter 254/300 Energy 76/100 System Corruption 1% Temperature Cool (15) Movement Rolling (120) Ox1 Location -10/Subcaves Parts ------- > --- POWER (1) -------- (None) > --- PROPULSION (2) --- Subdweller Monowheel > --- UTILITY (2) ------ Large Storage Unit > --- WEAPON (2) ------- Spread Laser Subdweller Laser > --- INVENTORY (15) --- Heat Sink Heat Sink Small Storage Unit Sensor Array Signal Interpreter Terrain Scanner Scrap Shield EM Pulse Gun Spread Laser Spread Laser Spread Laser Mining Laser Maul Peak State ------------ > --- POWER ------------ Light Ion Engine > --- PROPULSION ------- Subdweller Monowheel Subdweller Monowheel > --- UTILITY ---------- Large Storage Unit Core Shielding > --- WEAPON ----------- Spread Laser Rocket Launcher > --- INVENTORY -------- Heat Sink Heat Sink Small Storage Unit Sensor Array Signal Interpreter Terrain Scanner Scrap Shield EM Pulse Gun Spread Laser Spread Laser Spread Laser Mining Laser Maul [Rating: 13] Favorites ----------- Power Ion Engine Engine Ion Engine Propulsion Light Treads Treads Light Treads Wheel Wheel Utility Core Shielding Storage Large Storage Unit Protection Core Shielding Weapon Light Assault Rifle Energy Gun Spread Laser Ballistic Gun Light Assault Rifle Launcher Grenade Launcher Special Weapon Mining Laser Build | -11 -10 -10 -10 ------- Run | Yrd Mat Min Sub Slots Evolved . | . . . . Power . | . . . . Propulsion . | . . . . Utility . | . . . . Weapon . | . . . . Parts Attached 23 | 6 5 6 6 Power 4 | 1 . 2 1 Engine 4 | 1 . 2 1 Core . | . . . . Reactor . | . . . . Propulsion 6 | 2 . 2 2 Treads 2 | 2 . . . Leg . | . . . . Wheel 4 | . . 2 2 Hover . | . . . . Flight . | . . . . Utility 4 | 1 3 . . Device . | . . . . Storage 3 | 1 2 . . Processor . | . . . . Hackware . | . . . . Protection 1 | . 1 . . Artifact . | . . . . Weapon 9 | 2 2 2 3 Energy Gun 5 | 1 . 2 2 Energy Cannon . | . . . . Ballistic Gun 1 | 1 . . . Ballistic Cannon . | . . . . Launcher 2 | . 1 . 1 Special Weapon 1 | . 1 . . Impact Weapon . | . . . . Slashing Weapon . | . . . . Piercing Weapon . | . . . . Special Melee Weapon . | . . . . Unidentified Prototypes . | . . . . Parts Lost 13 | . . 6 7 Power 4 | . . 2 2 Propulsion 5 | . . 2 3 Utility 1 | . . . 1 Weapon 3 | . . 2 1 Highest Loss Streak 4 | . . 3 4 To Critical Strikes 1 | . . . 1 Average Backups 11 | . 7 14 13 Power . | . 1 . . Propulsion . | . . . . Utility 5 | . 3 6 7 Weapon 5 | . 3 7 6 Tool/Special . | . . . . Unused Backups 9 | . . . 9 Power . | . . . . Propulsion . | . . . . Utility 6 | . . . 6 Weapon 3 | . . . 3 Tool/Special . | . . . . Average Slot Usage (%) 94 | . 98 91 96 Engine 13 | . 14 13 12 Treads 16 | . 28 13 . Wheel 7 | . . 8 26 Storage 14 | . 14 14 14 Protection 13 | . 12 14 14 Energy Gun 9 | . 9 8 15 Ballistic Gun 9 | . 14 8 . Launcher 7 | . 4 9 9 Peak Build Rating 13 | 6 9 10 13 Average Rating 8 | 5 7 8 11 On Entrance 6 | . 6 9 10 Naked Turns . | . . . . Heaviest Build 32 | 12 30 30 32 Greatest Support 40 | 40 40 40 40 Greatest Overweight (x) 8 | 1 . 8 3 Average Overweight (x) . | . . . . Largest Inventory Capacity 15 | 8 15 15 15 Average Capacity 12 | 6 10 15 15 Most Carried 15 | 2 15 15 15 Average Carried 11 | 1 8 14 14 Final Capacity 15 | 8 15 15 15 Final Carried 15 | 2 15 14 14 Class Distribution -------------------- 97% | Mutant Dominant Class ---------------- Mutant | -10/Materials Mutant | -10/Mines Mutant | -10/Subcaves Resources | -11 -10 -10 -10 ----------- Run | Yrd Mat Min Sub Matter Collected 677 | 243 139 193 102 Remotely . | . . . . Salvage Created 944 | . 413 308 223 Parts 68 | . 24 27 17 Haulers Intercepted 2 | . 2 . . Recyclers Shooed . | . . . . Parts Field Recycled . | . . . . Retrieved Matter . | . . . . Parts Self-Destructed 6 | . . . 6 Prevented . | . . . . Kills | -11 -10 -10 -10 ------- Run | Yrd Mat Min Sub Combat Hostiles Destroyed 31 | . 12 12 7 Guns 15 | . 5 9 1 AOE 16 | . 7 3 6 Classes Destroyed 8 | . 5 2 1 Worker 2 | . 1 1 . Builder 1 | . 1 . . Tunneler 3 | . . 3 . Hauler 2 | . 2 . . Swarmer 6 | . 3 3 . Grunt 17 | . 9 8 . Subdweller 7 | . . . 7 Assembled 1 | . . 1 . Best Kill Streak 11 | . 5 11 4 Combat Bots Only 7 | . 3 7 4 Max Kills in Single Turn 4 | . 3 4 2 Gunslinging . | . . . . Exploded 2 | . 2 1 2 Melee . | . . . . Uniques/NPCs Destroyed . | . . . . Combat | -11 -10 -10 -10 -------- Run | Yrd Mat Min Sub Hostile Shots Fired 138 | . 60 52 26 Missed 37 | . 18 14 5 Hits 101 | . 42 38 21 Projectile 101 | . 42 38 21 AOE 1 | . . . 1 Critical Strikes 1 | . . . 1 Damage Taken 1354 | . 426 423 505 Core 254 | . 49 76 129 Absorbed by Shields . | . . . . Redirected to Shielding 51 | . 10 17 24 Core Remaining (%) 100 | 100 . . . Volleys Fired 77 | . 38 18 21 Largest 2 | . 2 2 2 Hottest 130 | . 120 130 125 Shots Fired 141 | . 73 36 32 Gun 114 | . 64 28 22 Cannon . | . . . . Launcher 23 | . 8 7 8 Special 4 | . 1 1 2 Kinetic 42 | . 38 4 . Thermal 76 | . 27 25 24 Explosive 23 | . 8 7 8 Electromagnetic . | . . . . Robot Hit Streak 11 | . 5 9 11 Robot Miss Streak 8 | . 6 8 3 Penetration Max . | . . . . Secondary Targets 2 | . 2 . . Max Gunslinging Chain 1 | . 1 . . Shots Hit Robots 84 | . 40 22 22 Core Hits 91 | . 27 42 22 Critical Kills . | . . . . Critical Parts Destroyed . | . . . . Critical Strikes . | . . . . Melee Attacks . | . . . . Impact . | . . . . Slashing . | . . . . Piercing . | . . . . Sneak Attacks . | . . . . Combat Hostiles . | . . . . Follow-up Attacks . | . . . . Damage Inflicted 2602 | . 991 653 958 Guns 809 | . 300 250 259 Cannons . | . . . . Explosions 1793 | . 691 403 699 Melee . | . . . . Ramming . | . . . . Kinetic 155 | . 148 7 . Thermal 654 | . 152 243 259 Explosive 1793 | . 691 403 699 Electromagnetic . | . . . . Impact . | . . . . Slashing . | . . . . Piercing . | . . . . Highest Corruption 1 | . 1 1 1 Average Corruption 1 | . 1 1 1 Corruption Purged . | . . . . Corruption Blocked . | . . . . Effects 13 | . 2 8 3 Message Errors 2 | . . 1 1 Matter Fused 2 | . 1 . 1 Energy Discharges 4 | . . 3 1 Parts Fused 1 | . . 1 . Data Loss (minor) 2 | . 1 1 . Misfires 1 | . . 1 . Alerts 1 | . . 1 . Overload Shots . | . . . . Overflow Damage 30 | . 30 . . Projectiles . | . . . . Explosions 30 | . 30 . . Melee . | . . . . Knockbacks . | . . . . Impact . | . . . . Kinetic . | . . . . Secondary . | . . . . Self-Inflicted Damage 56 | . 27 11 18 Shots 4 | . 2 1 1 Rammed . | . . . . Targets Rammed . | . . . . Kicked . | . . . . Crushed . | . . . . Highest Temperature 249 | . 60 249 15 Average Temperature 48 | . 24 78 6 Received Heat Transfer 312 | . 111 144 57 Siege Activations . | . . . . Martial Activations . | . . . . Shielding Activations . | . . . . Robots Disrupted . | . . . . Combat Hostiles . | . . . . Robots Corrupted . | . . . . Combat Hostiles . | . . . . Parts Fried . | . . . . Impact Corruptions . | . . . . Robots Melted . | . . . . Combat Hostiles . | . . . . Parts Melted . | . . . . Heat Transferred 970 | . 350 305 315 Parts Sabotaged . | . . . . Parts Stolen . | . . . . Parts Stripped . | . . . . Power Chain Reactions . | . . . . Alert | -11 -10 -10 -10 ------- Run | Yrd Mat Min Sub Maximum Alert Level . | . . . . Low Security (%) 100 | 100 100 100 . Level 1 . | . . . . Level 2 . | . . . . Level 3 . | . . . . Level 4 . | . . . . Level 5 . | . . . . High Security . | . . . . Max Security . | . . . . Peak Influence 181 | . 173 181 . Initial 64 | . . 64 . Average 55 | . 65 52 . Influence Increases 842 | . 457 385 . Destroy 0b10 Robot/C 520 | . 240 280 . Destroy 0b10 Robot/NC 40 | . 20 20 . Destroy Leader 84 | . 44 40 . Allied During Kill 4 | . . 4 . Successful Hack 11 | . 11 . . Select Force Hacks 30 | . 30 . . Disable Machine 45 | . 45 . . Destroy Structure 78 | . 37 41 . Lose Combat Pursuer 30 | . 30 . . Influence Decreases 842 | . 292 441 109 Entered New Map 158 | . . 101 57 Time Decay 594 | . 292 260 42 Lost Part 70 | . . 60 10 Lost Ally 20 | . . 20 . Squads Dispatched 2 | . 2 . . Investigation 1 | . 1 . . Extermination . | . . . . Reinforcement 1 | . 1 . . Assault . | . . . . Garrison . | . . . . Intercept . | . . . . Searches Triggered . | . . . . Construction Impeded . | . . . . Haulers Reinforced . | . . . . Active Scanning Responses . | . . . . Cargo Convoy Interrupts . | . . . . Stealth | -11 -10 -10 -10 --------- Run | Yrd Mat Min Sub Distress Signals 3 | . 3 . . Communications Jammed . | . . . . Distress Signals . | . . . . Times Spotted 49 | . 25 15 9 Peak Tracking Total 6 | . 6 5 2 Tactical Retreats 2 | . 2 . . Traps | -11 -10 -10 -10 ------- Run | Yrd Mat Min Sub Traps Triggered 1 | . 1 . . Indirectly . | . . . . Trap Hack Attempts . | . . . . Triggered . | . . . . Disarmed . | . . . . Reprogrammed . | . . . . Reused . | . . . . Traps Extracted . | . . . . Installed . | . . . . Triggered . | . . . . Machines | -11 -10 -10 -10 ---------- Run | Yrd Mat Min Sub Machines Disabled 3 | . 3 . . Max in Single Turn 1 | . 1 . . Machines Repaired . | . . . . Machines Dismantled . | . . . . Machines Sabotaged . | . . . . Overloaded Fab Kills . | . . . . Hacking | -11 -10 -10 -10 --------- Run | Yrd Mat Min Sub Machines Accessed 3 | . 3 . . Terminals 2 | . 2 . . Fabricators . | . . . . Repair Stations . | . . . . Recycling Units 1 | . 1 . . Scanalyzers . | . . . . Garrison Access . | . . . . Total Hacks 7 | . 7 . . Successful 3 | . 3 . . Failed 4 | . 4 . . Catastrophic . | . . . . Database Lockouts . | . . . . Manual 8 | . 8 . . Terminals 6 | . 6 . . Fabricators . | . . . . Repair Stations . | . . . . Recycling Units 1 | . 1 . . Scanalyzers . | . . . . Garrison Access . | . . . . Terminal Hacks 1 | . 1 . . Robot Analysis 1 | . 1 . . Fabricator Hacks . | . . . . Repair Station Hacks . | . . . . Recycling Unit Hacks . | . . . . Scanalyzer . | . . . . Garrison Access Hacks . | . . . . Unauthorized Hacks 2 | . 2 . . Terminals 1 | . 1 . . Botnet 1 | . 1 . . Fabricators . | . . . . Repair Stations . | . . . . Recycling Units 1 | . 1 . . Tunnel 1 | . 1 . . Scanalyzers . | . . . . Garrison Access . | . . . . Data Cores Recovered . | . . . . Used . | . . . . Hacking Detections 2 | . 2 . . Full Trace Events . | . . . . Feedback Events . | . . . . Feedback Blocked . | . . . . Robot Schematics Acquired . | . . . . Robots Built . | . . . . Authchips . | . . . . Time . | . . . . Total Robot Build Rating . | . . . . Part Schematics Acquired . | . . . . Parts Built . | . . . . Authchips . | . . . . Time . | . . . . Total Part Build Rating . | . . . . Parts Repaired . | . . . . Time . | . . . . Parts Recycled . | . . . . Recycled Matter . | . . . . Retrieved Matter . | . . . . Retrieved Components . | . . . . Parts Scanalyzed . | . . . . Part Schematics Acquired . | . . . . Parts Damaged . | . . . . Bothacking | -11 -10 -10 -10 ------------ Run | Yrd Mat Min Sub Used RIF Installer . | . . . . Robots Hacked . | . . . . Non-combat . | . . . . Combat . | . . . . Robot Hacks Applied . | . . . . Relay Couplers Released . | . . . . Fabnet Peak Effective % . | . . . . Robots Rewired . | . . . . Allies Hacked . | . . . . Hacks Repelled . | . . . . Allies | -11 -10 -10 -10 -------- Run | Yrd Mat Min Sub Total Allies 2 | . . 2 . Largest Group 2 | . . 2 . Highest-Rated Group 45 | . . 45 . Highest-Rated Ally 31 | . . 31 . Total Orders . | . . . . Ally Attacks 11 | . . 11 . Total Damage 148 | . . 148 . Kills 3 | . . 3 . Allies Corrupted . | . . . . Allies Melted . | . . . . Intel | -11 -10 -10 -10 ------- Run | Yrd Mat Min Sub Active Infowar (turns) . | . . . . Robot Analysis Total 1 | . 1 . . Derelict Logs Recovered 2 | . . 1 1 Drone Launches . | . . . . Drone Recoveries . | . . . . Exploration | -11 -10 -10 -10 ------------- Run | Yrd Mat Min Sub Turns Passed 1918 | 84 666 942 226 Spaces Moved 1049 | 49 333 529 138 Core 7 | 5 . 2 . Treads 685 | 44 333 308 . Legs . | . . . . Wheels 357 | . . 219 138 Hover . | . . . . Flight . | . . . . Fastest Speed 50 | 50 160 95 95 Average Speed 151 | 150 160 158 102 Slowest Speed 450 | 160 160 450 125 Overloaded Moves . | . . . . Propulsion Burnouts . | . . . . Robots Hopped . | . . . . Potential Cave-ins . | . . . . Cave-ins Triggered . | . . . . Exploration Rate (%) 43 | 4 65 93 12 Regions Visited 3 Branch Regions 2 Pre-discovered Areas 3 | . 1 2 . Known Exits Taken . | . . . . Unknown Exits Taken 3 | 1 1 1 . Scrap Searched 1 | . . 1 . Spaces Dug . | . . . . Terrain Destroyed 155 | . 40 59 56 Melee . | . . . . Projectile . | . . . . AOE 155 | . 40 59 56 Terrain Rammed . | . . . . Walls Destroyed . | . . . . Machines Disabled . | . . . . Actions | -11 -10 -10 -10 --------- Run | Yrd Mat Min Sub Total 1231 | 56 396 595 184 Wait 57 | . 6 38 13 Move 1046 | 48 332 528 138 Hop . | . . . . Pick Up 19 | 2 12 3 2 Fast Attach 12 | 6 1 3 2 Attach 5 | . . 3 2 Detach . | . . . . Swap 12 | . 6 1 5 Drop 3 | . 1 1 1 Fire 77 | . 38 18 21 Melee . | . . . . Ram . | . . . . Kick . | . . . . Crush . | . . . . Escape Stasis . | . . . . Rewire . | . . . . Trap . | . . . . Miscellaneous . | . . . . Route ------- -11/Scrapyard -10/Materials (discovered 4 exits: [*Mat x2] / [*Min x2]) -10/Mines (discovered 3 exits: [*Mat x2] / [*Sub]) -10/Subcaves History --------- Turn | Location | Event 2 | -11/Scrapyard | Met Revision 17 14 | -11/Scrapyard | Discovered new exit (range 15) 85 | -11/Scrapyard | Entered Materials 256 | -10/Materials | Discovered new exit (range 14) 303 | -10/Materials | Build established: Mutant 524 | -10/Materials | Discovered new exit (range 9) 596 | -10/Materials | Discovered new exit (range 15) 619 | -10/Materials | Discovered new exit (range 15) 751 | -10/Materials | Entered Mines 871 | -10/Mines | Learned location of Storage (-9) 1066 | -10/Mines | Found a hidden stash of uninstalled traps 1147 | -10/Mines | Received a Rocket Launcher from a helpful Derelict 1367 | -10/Mines | Excavation squad dispatched 1367 | -10/Mines | A large section of the Mines collapsed 1430 | -10/Mines | Discovered new exit (range 10) 1438 | -10/Mines | Lost 3 parts (1p1n1w) 1475 | -10/Mines | Destroyed 7 combat bots 1536 | -10/Mines | Discovered new exit (range 7) 1657 | -10/Mines | Discovered new exit (range 7) 1693 | -10/Mines | Entered Subcaves 1694 | -10/Subcaves | Approached by a straggling Scientist 1735 | -10/Subcaves | Ambushed by Subdwellers from Twisted Machinery 1767 | -10/Subcaves | Learned Materials interactive machine intel 1795 | -10/Subcaves | A swath of the cavern ceiling suddenly collapsed 1797 | -10/Subcaves | Ambushed by Subdwellers from Twisted Machinery 1885 | -10/Subcaves | Core integrity fell below 50% 1918 | -10/Subcaves | Core integrity fell below 20% 1919 | -10/Subcaves | Destroyed by 65-VYE(R) with Subdweller Laser Last Messages --------------- 01829_ Acquired Sub. Monowheel. 01831_ Acquired 13 matter. 01832_ System corrupted: Energy discharge (-23). 01834_ The unstable cave ceiling collapses. 01836_ Acquired Sub. Laser. SU-2IR(c): "I think it's somewhere south of here" 01849_ System corrupted: Matter fused (-5). 01886_ Critical hit (Destroy). 01886_ Rocket Launcher destroyed. SU-2IR(c): "I think it's somewhere south of here" 01904_ 94-3YP(R) destroyed. 01907_ Acquired 14 matter. 01909_ The unstable cave ceiling collapses. 01911_ Sub. Monowheel destroyed. 01912_ 65-VYE(R) affixes Scrap Shield Fragment to Scrap Shield. 01915_ Lgt. Ion Engine destroyed. 01919_ Core Shielding destroyed. Map ----- +----------------------------------------------------+ | ?????????????## #??##### ### #" | | ??????????????????????# "## | | ??????????????????????## # "" #"## | | ???????????????????????# # # ## ### | | ???????????????????????###### ## ###"" | | ??????????????????????????# ### ### " " | | ?????????????????????????? ##?## #"" | | ?????????????????????????? #???# ###" | | ?????????????????????????## ##???# ###" | | ??????????????????????###?## ##???## ##" | | ????????? ??????????## #### ##????#""## | | ???????? ???##### ## ##?????#"###?? | | ???????? ## ######?#######"##?? | | ??????? ######## "###"##? | | ??????? ## "###"# | | ??????? ## " ""# | | ???????# ### " # "##"# | | ????????? ????#### "" & #"#"## # | | ???????????? ?????????###"" ""#### # | | ???????????????????######"""" "" ""##??? # | | ?????????????###??## """ "" "" & "##????? # | | ?????????????# # "" """" " # " #??????## | | ?????????????# # " """" ####"" #???????? | | ?????????????# """" ###"" #???????? | | ??????????????# ! " "" #???????? | | ?????????????# # R@R """ ## #???????? | | ????????????? ### "" ######???????? | | ?????????? ##?# ??### "####????????????? | | ???????????????????? ?????### ""#???????????????? | | ???????????????????# ????????## "#???????????????? | | ??????????????????????????????##"#???????????????? | | ????????????????????????????????##???????????????? | | ?????????????????????????????????????????????????? | | ?????????????????????????????????????????????????? | | ?????????????????????????????????????????????????? | | ?????????????????????????????????????????????????? | | ?????????????????????????????????????????????????? | | ?????????????????????????????????????????????????? | | ?????????????????????????????????????????????????? | | ?????????????????????????????????????????????????? | | ?????????????????????????????????????????????????? | | ?????????????????????????????????????????????????? | | ?????????????????????????????????????????????????? | | ?????????????????????????????????????????????????? | | ?????????????????????????????????????????????????? | | ?????????????????????????????????????????????????? | | ?????????????????????????????????????????????????? | | ?????????????????????????????????????????????????? | | ?????????????????????????????????????????????????? | | ?????????????????????????????????????????????????? | +----------------------------------------------------+ Best States ------------- Heat Dissipation 25 Energy Generation 10 Energy Capacity 250 Matter Stores 300 Matter Capacity 300 Sight Range 16 Terrain Scan Density 10 Core Shielding 20 Evasion (%) 41 Recoil Reduction 2 Item Schematics ----------------- None Robot Schematics ------------------ None Fabricated ------------ Nothing Repaired ---------- Nothing Alien Tech Used ----------------- None Achievements -------------- None Challenges ------------ None Game ------ Seed GrapheneVoltaicParser Manual? 0 Play Time 00:16:07 Cumulative 216.3 hours Start 2025.05.25 @ 11:05:35 End 2025.05.25 @ 11:21:26 Sessions 1 Manual Loads 0 Difficulty Rogue Special Mode None Game No. 206 Rogue 206 Adventurer 0 Explorer 0 Win Type - Total 1 Types 1/0/0/0/0/0/0/0/0/0 Lore% 72 Gallery% 59 Achievement% 49 Wizard Run 0 Options --------- Layout 1 ASCII 0 Keyboard 0 Movement Arrows Keybinds 0 Fullscreen 1 Font 24/Smallcaps Map View 50x35 Zoom Use 0% Tactical HUD 1 Map Filters NONE Filters NONE Steam 1 RUN: d5ddc719-854d-455d-8713-b66bc97d791f